Cogmind - Beta 15 @@@ ROGUE MODE // 2025.05.24 @ 21:54:29 Player: Windjigo Result: Destroyed by G-47 Trooper with Particle Gun Performance ------------- Evolutions (3) 1500 Regions Visited (5) 1000 Robots Destroyed (106) 530 Value Destroyed (2737) 2737 Prototype IDs (4) 80 Alien Tech Used (0) 0 Bonus (96) 96 TOTAL SCORE: 5943 Bonus ------- High Alert Combat Kills 96 Cogmind --------- Core Integrity 0/700 Matter 265/300 Energy 160/160 System Corruption 24% Temperature Cool (9) Movement Rolling (120) Ox2 Location -7/Factory Parts ------- > --- POWER (1) -------- Light Nuclear Core > --- PROPULSION (3) --- Wheel Compact Wheel > --- UTILITY (6) ------ Large Storage Unit Improved Sensor Array Improved Signal Interpreter Core Analyzer Improved Light Armor Plating Medium Reactive Plating > --- WEAPON (3) ------- Mace Chainsword Great Axe (fused) > --- INVENTORY (15) --- Melee Analysis Suite Melee Analysis Suite Microactuators Hardened Medium Armor Plating Improved Light Armor Plating Improved Shield Generator Splice Drone Bay (6/6) Heavy Ion Cannon Proton Missile Launcher Plasma Cutter Plasma Flamer Maul Peak State ------------ > --- POWER ------------ Improved Deuterium Engine > --- PROPULSION ------- Wheel Compact Wheel Compact Wheel > --- UTILITY ---------- Large Storage Unit Improved Signal Interpreter Core Analyzer Hardened Heavy Armor Plating Improved Shield Generator > --- WEAPON ----------- Maul Heavy Mace Great Axe > --- INVENTORY -------- Nuclear Core Hardened Medium Armor Plating Hardened Heavy Armor Plating Medium Reactive Plating Medium Reactive Plating Medium Reactive Plating Splice Drone Bay Heavy Ion Cannon Proton Missile Launcher Plasma Cutter Plasma Flamer Mace [Rating: 41] Favorites ----------- Power Improved Ion Engine Engine Improved Ion Engine Power Core Light Nuclear Core Propulsion Wheel Wheel Wheel Utility Large Storage Unit Device Improved Sensor Array Storage Large Storage Unit Processor Improved Signal Interpreter Hackware System Shield Protection Medium Reactive Plating Weapon Maul Energy Gun Medium Laser Energy Cannon Advanced Beam Cannon Ballistic Gun Enhanced Autogun Launcher Mini Grenade Launcher Special Weapon Mining Laser Impact Weapon Maul Slashing Weapon Great Axe Build | -11 -10 -9 -9 -8 -7 ------- Run | Yrd Mat Mat Min Mat Fac Slots Evolved 6 | . . 2 . 2 2 Power . | . . . . . . Propulsion 1 | . . . . 1 . Utility 4 | . . 2 . 1 1 Weapon 1 | . . . . . 1 Parts Attached 73 | 7 4 14 11 6 31 Power 9 | 1 . 2 . 1 5 Engine 6 | 1 . 2 . 1 2 Core 3 | . . . . . 3 Reactor . | . . . . . . Propulsion 19 | 2 . 4 4 2 7 Treads . | . . . . . . Leg . | . . . . . . Wheel 19 | 2 . 4 4 2 7 Hover . | . . . . . . Flight . | . . . . . . Utility 30 | 2 3 3 4 3 15 Device 10 | 1 1 . 2 1 5 Storage 4 | 1 2 . . 1 . Processor 4 | . . 1 . . 3 Hackware 1 | . . . 1 . . Protection 11 | . . 2 1 1 7 Artifact . | . . . . . . Weapon 15 | 2 1 5 3 . 4 Energy Gun 2 | 1 . 1 . . . Energy Cannon 1 | . . 1 . . . Ballistic Gun 5 | 1 . 3 . . 1 Ballistic Cannon . | . . . . . . Launcher 1 | . . . 1 . . Special Weapon 1 | . 1 . . . . Impact Weapon 3 | . . . 2 . 1 Slashing Weapon 2 | . . . . . 2 Piercing Weapon . | . . . . . . Special Melee Weapon . | . . . . . . Unidentified Prototypes 4 | . . 2 1 . 1 Parts Lost 26 | . . 3 5 . 18 Power 4 | . . 1 . . 3 Propulsion 11 | . . 2 1 . 8 Utility 10 | . . . 4 . 6 Weapon 1 | . . . . . 1 Highest Loss Streak 5 | . . 2 3 . 5 To Critical Strikes . | . . . . . . Average Backups 13 | 2 9 14 14 14 13 Power 1 | 1 2 2 1 1 . Propulsion . | . 1 . 1 1 . Utility 4 | . 1 4 2 4 6 Weapon 5 | . 3 5 9 7 4 Tool/Special . | . . . . . . Unused Backups 38 | . 3 7 3 4 21 Power 4 | . . 2 . . 2 Propulsion . | . . . . . . Utility 15 | . . 2 1 1 11 Weapon 18 | . 3 3 2 3 7 Tool/Special 1 | . . . . . 1 Average Slot Usage (%) 93 | . 99 96 97 98 90 Engine 6 | . 14 10 11 9 3 Core 1 | . . . . . 3 Wheel 20 | . 28 19 21 27 18 Device 10 | . 13 11 12 17 9 Storage 8 | . 14 11 11 9 7 Processor 10 | . . 11 7 . 13 Hackware 1 | . . . 3 9 . Protection 8 | . . 9 7 8 9 Energy Gun 1 | . 14 2 . . . Energy Cannon 1 | . . 8 1 . . Ballistic Gun 4 | . 13 10 1 . 2 Impact Weapon 12 | . . . 18 17 14 Slashing Weapon 2 | . . . . . 4 Peak Build Rating 41 | 7 8 18 24 30 41 Average Rating 27 | 4 7 14 18 26 37 On Entrance 14 | . 7 8 18 24 27 Naked Turns . | . . . . . . Heaviest Build 81 | 15 30 42 43 62 81 Greatest Support 42 | 20 20 20 20 30 42 Greatest Overweight (x) 21 | . 1 4 3 2 21 Average Overweight (x) 1 | . . 1 1 1 2 Largest Inventory Capacity 15 | 8 15 15 15 15 15 Average Capacity 14 | 7 12 15 15 15 15 Most Carried 15 | 5 12 15 15 15 15 Average Carried 13 | 2 9 14 14 14 13 Final Capacity 15 | 8 15 15 15 15 15 Final Carried 15 | 4 12 15 15 15 12 Class Distribution -------------------- 57% | Mutant 26% | Scavenger-Mutant 13% | Scavenger-Gladiator Dominant Class ---------------- Mutant | -10/Materials Scavenger-Mutant | -9/Materials Mutant | -9/Mines Scavenger-Mutant | -8/Materials Mutant | -7/Factory Resources | -11 -10 -9 -9 -8 -7 ----------- Run | Yrd Mat Mat Min Mat Fac Matter Collected 1594 | 179 141 382 195 50 647 Remotely . | . . . . . . Salvage Created 3797 | 79 68 623 523 87 2417 Parts 138 | 4 13 40 13 6 62 Haulers Intercepted 5 | . . 1 . . 4 Recyclers Shooed 5 | 1 . . . . 4 Parts Field Recycled . | . . . . . . Retrieved Matter . | . . . . . . Parts Self-Destructed . | . . . . . . Prevented . | . . . . . . Kills | -11 -10 -9 -9 -8 -7 ------- Run | Yrd Mat Mat Min Mat Fac Combat Hostiles Destroyed 57 | . 3 10 10 2 32 Melee 17 | . . . 1 1 15 Guns 10 | . 3 5 1 . 1 Cannons 5 | . . 4 1 . . AOE 12 | . . . 4 . 8 Classes Destroyed 15 | 2 2 6 . 1 4 Worker 21 | . 1 2 2 . 16 Builder 1 | . . . . . 1 Tunneler 7 | 1 . . 3 . 3 Hauler 5 | . . 1 . . 4 Recycler 11 | 1 . . 2 . 8 Watcher 4 | . . 1 . . 3 Swarmer 9 | . 3 . 4 . 2 Grunt 14 | . . 3 3 . 8 Brawler 5 | . . 1 2 . 2 Duelist 5 | . . 1 1 . 3 Protector 1 | . . . . . 1 Sentry 8 | . . 5 . 1 2 Specialist 2 | . . . . . 2 Hunter 4 | . . . . 1 3 Programmer 9 | . . . . . 9 Best Kill Streak 8 | 2 3 3 4 1 8 Combat Bots Only 8 | . 3 3 4 1 8 Max Kills in Single Turn 8 | 1 2 1 2 1 8 Gunslinging 1 | . 1 . . . . Exploded 8 | . . . 2 . 8 Melee 1 | . . . 1 1 1 Uniques/NPCs Destroyed . | . . . . . . Combat | -11 -10 -9 -9 -8 -7 -------- Run | Yrd Mat Mat Min Mat Fac Hostile Shots Fired 592 | . 11 53 34 12 482 Missed 172 | . 4 13 10 5 140 Hits 420 | . 7 40 24 7 342 Melee 26 | . . 3 9 . 14 Projectile 394 | . 7 37 15 7 328 Critical Strikes 19 | . . . 2 . 17 Damage Taken 5591 | . 71 559 446 58 4457 Core 920 | . . 102 82 26 710 Absorbed by Shields 344 | . . . . 22 322 Ignored by Resistances 244 | . . . . 33 211 Regen/Repaired (Parts) 194 | . . . . 15 179 Core Remaining (%) 87 | 100 100 . 54 95 . Volleys Fired 87 | 4 16 44 8 3 12 Largest 2 | 2 2 2 2 1 1 Hottest 100 | 70 100 100 93 100 25 Shots Fired 148 | 8 29 83 13 3 12 Gun 106 | 8 26 55 5 . 12 Cannon 32 | . . 27 5 . . Launcher 3 | . . . 3 . . Special 7 | . 3 1 . 3 . Kinetic 77 | 4 13 43 5 . 12 Thermal 68 | 4 16 40 5 3 . Explosive 3 | . . . 3 . . Electromagnetic . | . . . . . . Robot Hit Streak 11 | 4 6 11 7 . 10 Robot Miss Streak 4 | 1 2 4 2 . 1 Penetration Max . | . . . . . . Secondary Targets 1 | . 1 . . . . Max Gunslinging Chain 1 | . 1 . . . . Shots Hit Robots 242 | 5 16 50 26 5 140 Core Hits 77 | 3 5 20 11 1 37 Critical Kills 5 | . . 1 3 1 . Critical Parts Destroyed 27 | . . 2 2 2 21 Critical Strikes 38 | . . 5 6 3 24 Burn 2 | . . 2 . . . Meltdown 1 | . . 1 . . . Destroy 2 | . . 2 . . . Smash 31 | . . . 6 3 22 Sever 2 | . . . . . 2 Melee Attacks 209 | . . . 23 8 178 Impact 183 | . . . 23 8 152 Slashing 26 | . . . . . 26 Piercing . | . . . . . . Sneak Attacks 45 | . . . 7 . 38 Combat Hostiles 3 | . . . . . 3 Follow-up Attacks 26 | . . . 1 1 24 Damage Inflicted 11056 | 63 205 816 1273 133 8566 Guns 1062 | 63 205 551 49 . 194 Cannons 347 | . . 265 82 . . Explosions 1691 | . . . 169 . 1522 Melee 7956 | . . . 973 133 6850 Ramming . | . . . . . . Kinetic 760 | 12 94 411 49 . 194 Thermal 2171 | 51 111 405 82 . 1522 Explosive 169 | . . . 169 . . Electromagnetic . | . . . . . . Impact 7284 | . . . 973 133 6178 Slashing 672 | . . . . . 672 Piercing . | . . . . . . Highest Corruption 24 | . . . 6 . 24 Average Corruption 11 | . . . 5 . 12 Corruption Purged . | . . . . . . Corruption Blocked . | . . . . . . Effects 89 | . . . 8 . 81 Message Errors 25 | . . . 1 . 24 Matter Fused 15 | . . . 3 . 12 Heat Flow Errors 10 | . . . . . 10 Energy Discharges 12 | . . . 3 . 9 Parts Rejected 1 | . . . . . 1 Parts Fused 2 | . . . . . 2 Data Loss (minor) 12 | . . . 1 . 11 Data Loss (major) 5 | . . . . . 5 Alerts 3 | . . . . . 3 Misdirections 4 | . . . . . 4 Overload Shots . | . . . . . . Overflow Damage 3156 | . . 11 288 34 2823 Projectiles 25 | . . 11 . . 14 Explosions 293 | . . . . . 293 Melee 2838 | . . . 288 34 2516 Knockbacks 36 | . . . 7 . 29 Impact 34 | . . . 6 . 28 Kinetic . | . . . . . . Secondary 2 | . . . 1 . 1 Self-Inflicted Damage 215 | . . . 23 . 192 Shots 3 | . . . 1 . 2 Rammed . | . . . . . . Targets Rammed . | . . . . . . Kicked . | . . . . . . Crushed . | . . . . . . Highest Temperature 429 | 36 60 429 190 20 278 Average Temperature 100 | 19 20 139 92 12 104 Received Heat Transfer 1892 | . 24 189 66 6 1607 Effects 2 | . . 2 . . . Shutdowns 1 | . . 1 . . . Interference 1 | . . 1 . . . Siege Activations . | . . . . . . Martial Activations . | . . . . . . Shielding Activations . | . . . . . . Robots Disrupted . | . . . . . . Combat Hostiles . | . . . . . . Robots Corrupted 33 | . . . 7 1 25 Combat Hostiles 11 | . . . 3 1 7 Parts Fried 51 | . . . 12 1 38 Impact Corruptions 107 | . . . 13 2 92 Robots Melted 2 | . . 1 . . 1 Combat Hostiles 2 | . . 1 . . 1 Parts Melted 3 | 1 . 1 . . 1 Heat Transferred 2390 | 148 333 1036 148 . 725 Parts Sabotaged . | . . . . . . Parts Stolen . | . . . . . . Parts Stripped . | . . . . . . Power Chain Reactions . | . . . . . . Alert | -11 -10 -9 -9 -8 -7 ------- Run | Yrd Mat Mat Min Mat Fac Maximum Alert Level 2 | . . . . . 2 Low Security (%) 71 | 100 100 100 100 100 45 Level 1 14 | . . . . . 28 Level 2 13 | . . . . . 26 Level 3 . | . . . . . . Level 4 . | . . . . . . Level 5 . | . . . . . . High Security . | . . . . . . Max Security . | . . . . . . Peak Influence 494 | 10 70 97 97 31 494 Initial 18 | . . 2 18 . . Average 125 | 1 11 37 23 3 218 Influence Increases 2102 | 10 119 329 329 80 1235 Destroy 0b10 Robot/C 1120 | . 60 200 200 40 620 Destroy 0b10 Robot/NC 250 | 10 5 20 35 . 180 Destroy Leader 288 | . 10 74 40 20 144 Successful Hack 90 | . 14 18 . 2 56 Disable Machine 75 | . 15 15 15 . 30 Destroy Structure 54 | . . 2 24 3 25 Partial Spotted 30 | . . . . . 30 Lose Combat Pursuer 195 | . 15 . 15 15 150 Influence Decreases 1622 | 10 112 287 378 80 755 Entered New Map 36 | . . 5 31 . . Time Decay 1304 | 10 112 262 328 80 512 Lost Part 197 | . . 20 19 . 158 Lost Ally 20 | . . . . . 20 Purge Threat 65 | . . . . . 65 Squads Dispatched 9 | . 1 . . . 8 Investigation . | . . . . . . Extermination 5 | . . . . . 5 Reinforcement 2 | . 1 . . . 1 Assault 2 | . . . . . 2 Garrison . | . . . . . . Intercept . | . . . . . . Searches Triggered . | . . . . . . Construction Impeded . | . . . . . . Haulers Reinforced . | . . . . . . Active Scanning Responses . | . . . . . . Cargo Convoy Interrupts 1 | . . . . . 1 Stealth | -11 -10 -9 -9 -8 -7 --------- Run | Yrd Mat Mat Min Mat Fac Distress Signals 5 | . 1 3 . 1 . Communications Jammed . | . . . . . . Distress Signals . | . . . . . . Times Spotted 115 | . 17 19 10 7 62 Peak Tracking Total 13 | . 6 7 4 3 13 Tactical Retreats 12 | . 1 . 1 1 9 Traps | -11 -10 -9 -9 -8 -7 ------- Run | Yrd Mat Mat Min Mat Fac Traps Triggered 2 | . . . . . 2 Indirectly . | . . . . . . Trap Hack Attempts . | . . . . . . Triggered . | . . . . . . Disarmed . | . . . . . . Reprogrammed . | . . . . . . Reused . | . . . . . . Traps Extracted . | . . . . . . Installed . | . . . . . . Triggered . | . . . . . . Machines | -11 -10 -9 -9 -8 -7 ---------- Run | Yrd Mat Mat Min Mat Fac Machines Disabled 5 | . 1 1 1 . 2 Max in Single Turn 2 | . 1 1 1 . 2 Garrison Access 3 | . . . . . 3 Machines Repaired . | . . . . . . Machines Dismantled . | . . . . . . Machines Sabotaged . | . . . . . . Overloaded Fab Kills . | . . . . . . Hacking | -11 -10 -9 -9 -8 -7 --------- Run | Yrd Mat Mat Min Mat Fac Machines Accessed 31 | . 7 3 1 4 16 Terminals 19 | . 6 3 . 3 7 Fabricators . | . . . . . . Repair Stations 5 | . . . . 1 4 Recycling Units 3 | . 1 . . . 2 Scanalyzers . | . . . . . . Garrison Access 3 | . . . . . 3 Total Hacks 83 | . 19 8 1 14 41 Successful 47 | . 11 4 1 8 23 Failed 36 | . 8 4 . 6 18 Catastrophic 6 | . 4 . . . 2 Database Lockouts . | . . . . . . Manual 40 | . 16 6 . 8 10 Terminals 53 | . 16 8 . 12 17 Fabricators . | . . . . . . Repair Stations 13 | . . . . 2 11 Recycling Units 7 | . 3 . . . 4 Scanalyzers . | . . . . . . Garrison Access 9 | . . . . . 9 Terminal Hacks 14 | . 2 1 1 3 7 Open Door 1 | . . . 1 . . Unreport Threat 1 | . . . . . 1 Zone Layout 12 | . 2 1 . 3 6 Fabricator Hacks . | . . . . . . Repair Station Hacks 8 | . . . . 2 6 Scan Component 4 | . . . . 1 3 Repair 4 | . . . . 1 3 Recycling Unit Hacks 4 | . 2 . . . 2 Report Inventory 1 | . 1 . . . . Retrieve Components 3 | . 1 . . . 2 Scanalyzer . | . . . . . . Garrison Access Hacks 3 | . . . . . 3 Seal Access 3 | . . . . . 3 Unauthorized Hacks 18 | . 7 3 . 3 5 Terminals 17 | . 6 3 . 3 5 Assimilate 1 | . 1 . . . . Botnet 15 | . 5 3 . 3 4 Operators 1 | . . . . . 1 Fabricators . | . . . . . . Repair Stations . | . . . . . . Recycling Units 1 | . 1 . . . . Recyclers 1 | . 1 . . . . Scanalyzers . | . . . . . . Garrison Access . | . . . . . . Data Cores Recovered . | . . . . . . Used . | . . . . . . Hacking Detections 23 | . 6 3 . 3 11 Full Trace Events . | . . . . . . Feedback Events . | . . . . . . Feedback Blocked . | . . . . . . Robot Schematics Acquired . | . . . . . . Robots Built . | . . . . . . Authchips . | . . . . . . Time . | . . . . . . Total Robot Build Rating . | . . . . . . Part Schematics Acquired . | . . . . . . Parts Built . | . . . . . . Authchips . | . . . . . . Time . | . . . . . . Total Part Build Rating . | . . . . . . Parts Repaired 4 | . . . . 1 3 Time 128 | . . . . 32 96 Parts Recycled . | . . . . . . Recycled Matter . | . . . . . . Retrieved Matter . | . . . . . . Retrieved Components 14 | . 3 . . . 11 Parts Scanalyzed . | . . . . . . Part Schematics Acquired . | . . . . . . Parts Damaged . | . . . . . . Bothacking | -11 -10 -9 -9 -8 -7 ------------ Run | Yrd Mat Mat Min Mat Fac Used RIF Installer . | . . . . . . Robots Hacked . | . . . . . . Non-combat . | . . . . . . Combat . | . . . . . . Robot Hacks Applied . | . . . . . . Relay Couplers Released . | . . . . . . Fabnet Peak Effective % . | . . . . . . Robots Rewired . | . . . . . . Allies Hacked . | . . . . . . Hacks Repelled . | . . . . . . Allies | -11 -10 -9 -9 -8 -7 -------- Run | Yrd Mat Mat Min Mat Fac Total Allies 2 | . 1 . . . 1 Largest Group 1 | . 1 . . . . Highest-Rated Group 10 | . 10 . . . . Highest-Rated Ally 10 | . 10 . . . . Total Orders . | . . . . . . Ally Attacks 14 | . . . 4 . 10 Total Damage 71 | . . . 2 . 69 Kills . | . . . . . . Allies Corrupted . | . . . . . . Allies Melted . | . . . . . . Intel | -11 -10 -9 -9 -8 -7 ------- Run | Yrd Mat Mat Min Mat Fac Active Infowar (turns) 4707 | 14 469 715 728 410 2371 Sensors 4535 | . 311 715 728 410 2371 Seismic 172 | 14 158 . . . . Robot Analysis Total . | . . . . . . Derelict Logs Recovered 1 | . . . 1 . . Drone Launches 13 | . . . 4 . 9 Drone Recoveries 13 | . . . 4 . 9 Exploration | -11 -10 -9 -9 -8 -7 ------------- Run | Yrd Mat Mat Min Mat Fac Turns Passed 6184 | 60 470 715 1230 447 3262 Spaces Moved 4080 | 41 459 463 925 236 1956 Core 11 | 8 . . . . 3 Treads . | . . . . . . Legs . | . . . . . . Wheels 4069 | 33 459 463 925 236 1953 Hover . | . . . . . . Flight . | . . . . . . Fastest Speed 50 | 50 80 95 95 95 95 Average Speed 106 | 74 85 106 97 95 117 Slowest Speed 1100 | 80 95 140 125 110 1100 Overloaded Moves . | . . . . . . Propulsion Burnouts . | . . . . . . Robots Hopped . | . . . . . . Potential Cave-ins . | . . . . . . Cave-ins Triggered . | . . . . . . Exploration Rate (%) 50 | 3 69 49 101 34 46 Regions Visited 5 Branch Regions 1 Pre-discovered Areas 1 | . . . 1 . . Known Exits Taken 2 | . . 1 1 . . Unknown Exits Taken 3 | 1 1 . . 1 . Scrap Searched 3 | . . . 3 . . Spaces Dug 4 | . . 1 . 3 . Terrain Destroyed 66 | . . 1 35 3 27 Melee . | . . . . . . Projectile 4 | . . 1 . 3 . AOE 62 | . . . 35 . 27 Terrain Rammed . | . . . . . . Walls Destroyed . | . . . . . . Machines Disabled . | . . . . . . Actions | -11 -10 -9 -9 -8 -7 --------- Run | Yrd Mat Mat Min Mat Fac Total 5464 | 62 502 608 1197 433 2662 Wait 846 | . 5 48 212 154 427 Move 4075 | 40 458 462 924 235 1956 Hop . | . . . . . . Pick Up 106 | 11 12 21 11 10 41 Fast Attach 11 | . 1 2 1 1 6 Attach 46 | 7 . 8 4 2 25 Detach . | . . . . . . Swap 48 | . 4 7 8 11 18 Drop 71 | . 6 16 8 10 31 Fire 87 | 4 16 44 8 3 12 Melee 166 | . . . 21 7 138 Ram . | . . . . . . Kick . | . . . . . . Crush . | . . . . . . Escape Stasis 8 | . . . . . 8 Rewire . | . . . . . . Trap . | . . . . . . Miscellaneous . | . . . . . . Route ------- -11/Scrapyard -10/Materials (discovered 3 exits: *Mat x2 / [*Min]) -9/Materials (discovered 3 exits: *Mat / *Min x2) -9/Mines (discovered 2 exits: *Mat x2) -8/Materials -7/Factory (discovered 1 exit: [*Fac]) History --------- Turn | Location | Event 15 | -11/Scrapyard | Discovered new exit (range 15) 61 | -11/Scrapyard | Entered Materials 207 | -10/Materials | Discovered new exit (range 12) 295 | -10/Materials | Discovered new exit (range 16) 305 | -10/Materials | Build established: Mutant 373 | -10/Materials | Discovered new exit (range 7) 531 | -10/Materials | Entered another Materials area 531 | -9/Materials | Evolved 2 slots: Utility x2 767 | -9/Materials | Discovered new exit (range 9) 797 | -9/Materials | Identified exit to Mines 810 | -9/Materials | Discovered new exit (range 14) 839 | -9/Materials | Identified exit to Materials 1131 | -9/Materials | Discovered exit to Mines (range 15) 1246 | -9/Materials | Entered Mines 1285 | -9/Mines | Learned location of Storage (-8) 1495 | -9/Mines | A weapon hastily lodged in a ceiling crevice suddenly fell to the ground 1956 | -9/Mines | Found the Drone Emporium 1962 | -9/Mines | Found Prototype Device 2000 | -9/Mines | Identified Splice Drone Bay 2013 | -9/Mines | Discovered exit to Materials (range 8) 2036 | -9/Mines | Discovered exit to Materials (range 10) 2120 | -9/Mines | Lost 3 parts (1n2u) 2476 | -9/Mines | Entered Materials 2476 | -8/Materials | Evolved 2 slots: Propulsion x1, Utility x1 2549 | -8/Materials | Repaired Shield Generator 2707 | -8/Materials | Discovered new exit (range 16) 2793 | -8/Materials | Build established: Scavenger-Mutant 2923 | -8/Materials | Entered Factory 2923 | -7/Factory | Evolved 2 slots: Utility x1, Weapon x1 2950 | -7/Factory | Discovered new exit (range 16) 3035 | -7/Factory | Repaired Mace 3544 | -7/Factory | Build established: Scavenger-Gladiator 3966 | -7/Factory | Repaired Maul 3999 | -7/Factory | Repaired Mace 4354 | -7/Factory | Cargo convoy interrupted 4400 | -7/Factory | System corruption reached 10% 4428 | -7/Factory | Destroyed 8 combat bots 4438 | -7/Factory | Lost 3 parts (2n1u) 4477 | -7/Factory | Core integrity fell below 50% 4519 | -7/Factory | Lost 5 parts (1p2n2u) 4980 | -7/Factory | Build established: Mutant 5323 | -7/Factory | First assault squad dispatched 5840 | -7/Factory | Lost 3 parts (1p1n1u) 6160 | -7/Factory | Core integrity fell below 20% 6185 | -7/Factory | Destroyed by G-47 Trooper with Particle Gun Last Messages --------------- 06154_ Wheel destroyed. 06156_ Critical hit (Burn: +37). 06156_ G-47 Trooper knocked back. 06163_ Great Axe follow-up attack on G-47 Trooper. 06163_ G-47 Trooper Unknown Leg severed. 06165_ Critical hit (Burn: +37). 06165_ Hvy. Mace destroyed. 06165_ Critical hit (Burn: +37). 06168_ K-01 Serf cleans the Terminal. 06169_ Critical hit (Burn: +37). 06170_ G-47 Trooper destroyed. 06172_ Hrd. Heavy Armor Plating destroyed. 06173_ Critical hit (Burn: +37). 06173_ K-01 Serf collects debris. 06176_ System corrupted: Matter fused (-10). 06177_ K-01 Serf collects debris. 06181_ Critical hit (Burn: +37). 06182_ G-47 Trooper Unknown Leg severed. 06182_ K-01 Serf collects debris. Map ----- +----------------------------------------------------+ | ??#""" ## + + # | | ??#""" ## # ############## | | ??#""" ## ! # #???????????? | | ??# ## # #???????????? | | ??################ #???????????# | | ?????????????????# #???????????? | | ???????????????###+##+#######?????# | | ???????????????# = % [#?????? | | ???????????????# %= %%! #?????????? | | ???????????????# """" #?????????? | | ???????????????# """" #?????????? | | ???????????????# """" #?????????? | | ???????????????# """" #?????????? | | ???????????????# "" % #?????????? | | ???????????????# "" #?????????? | | ??????????????## "T #?????????? | | ??????????????# "" #?????????? | | ??????????????## "" == #?????????? | | ?????########### != #?????????? | | ?????# = ####+##############????? | | ?????# ???? | | ?????# ???? | | ?????# ???? | | ?????# " ???? | | ?????# % g ki ????? | | ?????# ! @== ????? | | ?????# g%g ????? | | ?????# ###################????? | | ?????### ###??????????????# ????? | | ???????# ########?????????# ????? | | ???????# # #?????????# ????? | | ######## # ""?" ##########????????? | | # # # """" # ! #????????? | | # # # """" # #????????? | | # # # """" # #????????? | | #^ # # """" # #????????? | | # # # """" # !! #????????? | | # # # """" # !! #????????? | | # %+! + # ! #????????? | | # *#= # / # #????????? | | #] # # # #????????? | | # # ############+############# | | # # | | # # | | # # | | ######## | | ???????# | | ??#########+#### ######+######+###### | | ??# # #???? ???# #? | | ??# """" """" # #????"" ???# #? | +----------------------------------------------------+ Best States ------------- Heat Dissipation 34 Energy Generation 16 Energy Capacity 290 Matter Stores 300 Matter Capacity 300 Sight Range 16 Robot Scan Range 15 Terrain Scan Density 10 Armor Coverage 825 Resistance: KI 30 Melee Speed Boost 20 Evasion (%) 50 Melee Accuracy 5 Core Analysis 6 Defensive Hacking 10 Item Schematics ----------------- None Robot Schematics ------------------ None Fabricated ------------ Nothing Repaired ---------- Shield Generator | 50% | -8/Materials Mace | 26% | -7/Factory Maul | 51% | -7/Factory Mace | 72% | -7/Factory Alien Tech Used ----------------- None Achievements -------------- Batter Up Error 47 Challenges ------------ None Game ------ Seed MolecularEnergyRail Manual? 0 Play Time 01:05:05 Cumulative 70.0 hours Start 2025.05.24 @ 12:41:34 End 2025.05.24 @ 21:54:29 Sessions 3 Manual Loads 0 Difficulty Rogue Special Mode None Game No. 48 Rogue 48 Adventurer 0 Explorer 0 Win Type - Total 0 Types 0/0/0/0/0/0/0/0/0/0 Lore% 50 Gallery% 41 Achievement% 38 Wizard Run 0 Options --------- Layout 1 ASCII 0 Keyboard 0 Movement Mouse Keybinds 0 Fullscreen 1 Font 24/Smallcaps Map View 50x35 Zoom Use 0% Tactical HUD 1 Map Filters NONE Filters NONE Steam 1 RUN: 5b42a253-8463-45ff-843d-9eb239e0a171